[Event "Titled Tuesday Blitz August 3 2021"]
[White "Chen, Max"]
[Black "Anuj Shrivatri"]
[WhiteFideId "2622440"]
[BlackFideId "35070924"]
[WhiteElo "2438"]
[BlackElo "2038"]
[Result "0-1"]
[Round "04"]
[TimeControl "180+1"]
[Date "2021.08.03"]
[WhiteClock "0:00:03"]
[BlackClock "0:00:59"]

1. e4 {[%clk 0:02:40]}  d6 {[%clk 0:02:53]} 2. d4 {[%clk 0:02:39]}  Nf6 {[%clk 0:02:53]} 3. Nc3 {[%clk 0:02:39]}  g6 {[%clk 0:02:54]} 4. f4 {[%clk 0:02:37]}  Bg7 {[%clk 0:02:54]} 5. Bd3 {[%clk 0:02:37]}  O-O {[%clk 0:02:52]} 6. Nf3 {[%clk 0:02:38]}  b6 {[%clk 0:02:52]} 7. O-O {[%clk 0:02:37]}  Bb7 {[%clk 0:02:43]} 8. Kh1 {[%clk 0:02:33]}  c5 {[%clk 0:02:18]} 9. d5 {[%clk 0:02:30]}  e6 {[%clk 0:02:16]} 10. dxe6 {[%clk 0:02:19]}  fxe6 {[%clk 0:02:17]} 11. e5 {[%clk 0:02:08]}  Nd5 {[%clk 0:02:13]} 12. Ne4 {[%clk 0:01:48]}  dxe5 {[%clk 0:02:09]} 13. fxe5 {[%clk 0:01:46]}  Nd7 {[%clk 0:02:05]} 14. Neg5 {[%clk 0:01:39]}  Qe7 {[%clk 0:02:00]} 15. Qe2 {[%clk 0:01:39]}  Nxe5 {[%clk 0:01:53]} 16. Nxe5 {[%clk 0:01:30]}  Rxf1+ {[%clk 0:01:52]} 17. Qxf1 {[%clk 0:01:30]}  Bxe5 {[%clk 0:01:53]} 18. Qe2 {[%clk 0:01:30]}  Bf6 {[%clk 0:01:48]} 19. Nxe6 {[%clk 0:01:02]}  Re8 {[%clk 0:01:44]} 20. Nf4 {[%clk 0:01:00]}  Qxe2 {[%clk 0:01:38]} 21. Nxe2 {[%clk 0:00:54]}  Nb4 {[%clk 0:01:38]} 22. Bc4+ {[%clk 0:00:46]}  Kh8 {[%clk 0:01:28]} 23. c3 {[%clk 0:00:32]}  Nc2 {[%clk 0:01:27]} 24. Rb1 {[%clk 0:00:32]}  Be4 {[%clk 0:01:26]} 25. Bb3 {[%clk 0:00:12]}  Nd4 {[%clk 0:01:21]} 26. Nxd4 {[%clk 0:00:09]}  Bxb1 {[%clk 0:01:20]} 27. Nf3 {[%clk 0:00:09]}  Be4 {[%clk 0:01:15]} 28. Bf4 {[%clk 0:00:05]}  Kg7 {[%clk 0:01:06]} 29. Kg1 {[%clk 0:00:04]}  Bxf3 {[%clk 0:01:02]} 30. gxf3 {[%clk 0:00:04]}  Re2 {[%clk 0:00:58]} 31. Bb8 {[%clk 0:00:03]}  Rxb2 {[%clk 0:00:58]} 32. Bxa7 {[%clk 0:00:02]}  Bxc3 {[%clk 0:00:58]} 33. Bxb6 {[%clk 0:00:03]}  c4 {[%clk 0:00:59]} 0-1


[Site "https://www.chess.com"]

[Event "Titled Tuesday Blitz August 3 2021"]
[White "Darini, Pouria"]
[Black "Siddharth, Jagadeesh"]
[WhiteFideId "12502200"]
[BlackFideId "5818320"]
[WhiteElo "2753"]
[BlackElo "2561"]
[Result "1-0"]
[Round "04"]
[TimeControl "180+1"]
[Date "2021.08.03"]
[WhiteClock "0:00:14"]
[BlackClock "0:00:22"]

1. e4 {[%clk 0:03:00]}  e5 {[%clk 0:02:59]} 2. Nf3 {[%clk 0:02:57]}  Nc6 {[%clk 0:02:58]} 3. d4 {[%clk 0:02:58]}  exd4 {[%clk 0:02:58]} 4. Nxd4 {[%clk 0:02:59]}  Nf6 {[%clk 0:02:59]} 5. Nxc6 {[%clk 0:03:00]}  bxc6 {[%clk 0:02:59]} 6. e5 {[%clk 0:03:00]}  Qe7 {[%clk 0:03:00]} 7. Qe2 {[%clk 0:03:01]}  Nd5 {[%clk 0:03:01]} 8. h4 {[%clk 0:03:02]}  a5 {[%clk 0:02:56]} 9. Nd2 {[%clk 0:03:01]}  Ba6 {[%clk 0:02:54]} 10. c4 {[%clk 0:03:00]}  g6 {[%clk 0:02:34]} 11. Qe4 {[%clk 0:02:28]}  Nb6 {[%clk 0:01:51]} 12. Nf3 {[%clk 0:02:08]}  d5 {[%clk 0:01:44]} 13. cxd5 {[%clk 0:02:00]}  cxd5 {[%clk 0:01:45]} 14. Qc2 {[%clk 0:02:00]}  Bxf1 {[%clk 0:01:42]} 15. Kxf1 {[%clk 0:01:46]}  c5 {[%clk 0:01:34]} 16. Bg5 {[%clk 0:01:46]}  Qe6 {[%clk 0:01:34]} 17. Bf6 {[%clk 0:01:46]}  Rg8 {[%clk 0:01:26]} 18. Ng5 {[%clk 0:01:45]}  Qg4 {[%clk 0:01:20]} 19. Nxh7 {[%clk 0:01:23]}  Nd7 {[%clk 0:01:04]} 20. Rh3 {[%clk 0:01:17]}  Bg7 {[%clk 0:00:51]} 21. Bxg7 {[%clk 0:01:00]}  Rxg7 {[%clk 0:00:51]} 22. Nf6+ {[%clk 0:01:01]}  Nxf6 {[%clk 0:00:51]} 23. exf6 {[%clk 0:01:02]}  Rh7 {[%clk 0:00:52]} 24. Qxc5 {[%clk 0:00:40]}  Qc4+ {[%clk 0:00:43]} 25. Qxc4 {[%clk 0:00:40]}  dxc4 {[%clk 0:00:44]} 26. Re1+ {[%clk 0:00:37]}  Kf8 {[%clk 0:00:44]} 27. Re4 {[%clk 0:00:34]}  Rc8 {[%clk 0:00:39]} 28. Rc3 {[%clk 0:00:33]}  Rc6 {[%clk 0:00:37]} 29. Rf4 {[%clk 0:00:33]}  Rh5 {[%clk 0:00:30]} 30. Rcxc4 {[%clk 0:00:30]}  Rhc5 {[%clk 0:00:30]} 31. b3 {[%clk 0:00:23]}  Rxc4 {[%clk 0:00:27]} 32. Rxc4 {[%clk 0:00:22]}  Rxf6 {[%clk 0:00:26]} 33. Rc5 {[%clk 0:00:19]}  a4 {[%clk 0:00:21]} 34. bxa4 {[%clk 0:00:19]}  Rf4 {[%clk 0:00:21]} 35. g3 {[%clk 0:00:14]}  Rxa4 {[%clk 0:00:21]} 36. Rc2 {[%clk 0:00:15]}  Rd4 {[%clk 0:00:21]} 37. Ke2 {[%clk 0:00:15]}  Re4+ {[%clk 0:00:20]} 38. Kd3 {[%clk 0:00:15]}  Re1 {[%clk 0:00:20]} 39. Rd2 {[%clk 0:00:15]}  Ra1 {[%clk 0:00:21]} 40. Kc3 {[%clk 0:00:15]}  Ke7 {[%clk 0:00:21]} 41. Kb4 {[%clk 0:00:15]}  Ke6 {[%clk 0:00:19]} 42. a4 {[%clk 0:00:15]}  Ke5 {[%clk 0:00:19]} 43. a5 {[%clk 0:00:15]}  f5 {[%clk 0:00:18]} 44. Kb5 {[%clk 0:00:16]}  f4 {[%clk 0:00:19]} 45. a6 {[%clk 0:00:15]}  fxg3 {[%clk 0:00:19]} 46. fxg3 {[%clk 0:00:15]}  Kf5 {[%clk 0:00:19]} 47. Rd3 {[%clk 0:00:15]}  Kg4 {[%clk 0:00:19]} 48. Kb6 {[%clk 0:00:15]}  Rb1+ {[%clk 0:00:20]} 49. Kc7 {[%clk 0:00:14]}  Ra1 {[%clk 0:00:20]} 50. Kb7 {[%clk 0:00:14]}  Rb1+ {[%clk 0:00:21]} 51. Ka8 {[%clk 0:00:14]}  Ra1 {[%clk 0:00:21]} 52. a7 {[%clk 0:00:14]}  Kh3 {[%clk 0:00:21]} 53. Rd6 {[%clk 0:00:13]}  Kxg3 {[%clk 0:00:21]} 54. Rxg6+ {[%clk 0:00:14]}  Kxh4 {[%clk 0:00:22]} 55. Rb6 {[%clk 0:00:14]} 1-0


[Site "https://www.chess.com"]

[Event "Titled Tuesday Blitz August 3 2021"]
[White "Dvirnyy, Danyyil"]
[Black "Csonka, Balazs"]
[WhiteFideId "817570"]
[BlackFideId "742910"]
[WhiteElo "2531"]
[BlackElo "2404"]
[Result "1-0"]
[Round "04"]
[TimeControl "180+1"]
[Date "2021.08.03"]
[WhiteClock "0:00:03"]
[BlackClock "0:00:03"]

1. e4 {[%clk 0:02:56]}  e5 {[%clk 0:02:59]} 2. Nf3 {[%clk 0:02:54]}  Nc6 {[%clk 0:02:59]} 3. Bc4 {[%clk 0:02:54]}  Bc5 {[%clk 0:02:58]} 4. c3 {[%clk 0:02:50]}  Nf6 {[%clk 0:02:58]} 5. d3 {[%clk 0:02:50]}  a5 {[%clk 0:02:55]} 6. Nbd2 {[%clk 0:02:47]}  O-O {[%clk 0:02:52]} 7. O-O {[%clk 0:02:37]}  d6 {[%clk 0:02:50]} 8. h3 {[%clk 0:02:34]}  h6 {[%clk 0:02:45]} 9. Re1 {[%clk 0:02:30]}  a4 {[%clk 0:02:40]} 10. Bb5 {[%clk 0:02:28]}  Bd7 {[%clk 0:02:40]} 11. Bxa4 {[%clk 0:02:19]}  Rxa4 {[%clk 0:02:41]} 12. Qxa4 {[%clk 0:02:19]}  Nb4 {[%clk 0:02:40]} 13. Qd1 {[%clk 0:02:17]}  Nxd3 {[%clk 0:02:41]} 14. Rf1 {[%clk 0:02:12]}  Ba7 {[%clk 0:02:37]} 15. Qc2 {[%clk 0:02:00]}  Nxc1 {[%clk 0:02:18]} 16. Raxc1 {[%clk 0:01:59]}  Nh5 {[%clk 0:02:17]} 17. Kh2 {[%clk 0:01:49]}  Nf4 {[%clk 0:02:03]} 18. Nc4 {[%clk 0:01:28]}  Qc8 {[%clk 0:01:17]} 19. Ng1 {[%clk 0:01:28]}  f5 {[%clk 0:01:17]} 20. exf5 {[%clk 0:01:04]}  Bxf5 {[%clk 0:01:14]} 21. Qa4 {[%clk 0:01:04]}  Bd3 {[%clk 0:00:46]} 22. Nxd6 {[%clk 0:00:48]}  cxd6 {[%clk 0:00:24]} 23. Qxa7 {[%clk 0:00:47]}  Qc6 {[%clk 0:00:12]} 24. f3 {[%clk 0:00:44]}  Bxf1 {[%clk 0:00:11]} 25. Rxf1 {[%clk 0:00:44]}  e4 {[%clk 0:00:06]} 26. Qd4 {[%clk 0:00:38]}  Ne6 {[%clk 0:00:06]} 27. Qd1 {[%clk 0:00:33]}  d5 {[%clk 0:00:04]} 28. fxe4 {[%clk 0:00:28]}  Rxf1 {[%clk 0:00:05]} 29. Qxf1 {[%clk 0:00:29]}  dxe4 {[%clk 0:00:05]} 30. Ne2 {[%clk 0:00:23]}  Qd6+ {[%clk 0:00:05]} 31. Kg1 {[%clk 0:00:23]}  Qd2 {[%clk 0:00:04]} 32. Ng3 {[%clk 0:00:16]}  e3 {[%clk 0:00:04]} 33. Qc4 {[%clk 0:00:14]}  Kf7 {[%clk 0:00:02]} 34. Kh2 {[%clk 0:00:13]}  Qd6 {[%clk 0:00:01]} 35. Qe4 {[%clk 0:00:12]}  Qf4 {[%clk 0:00:02]} 36. Qxb7+ {[%clk 0:00:09]}  Kf6 {[%clk 0:00:02]} 37. Qb5 {[%clk 0:00:08]}  g6 {[%clk 0:00:01]} 38. Qe2 {[%clk 0:00:05]}  h5 {[%clk 0:00:01]} 39. Qf3 {[%clk 0:00:05]}  Qxf3 {[%clk 0:00:01]} 40. gxf3 {[%clk 0:00:06]}  h4 {[%clk 0:00:02]} 41. Ne2 {[%clk 0:00:06]}  Ke5 {[%clk 0:00:02]} 42. Kg2 {[%clk 0:00:06]}  Nc5 {[%clk 0:00:02]} 43. b4 {[%clk 0:00:05]}  Na4 {[%clk 0:00:02]} 44. a3 {[%clk 0:00:05]}  Nb6 {[%clk 0:00:02]} 45. f4+ {[%clk 0:00:02]}  Ke4 {[%clk 0:00:02]} 46. b5 {[%clk 0:00:02]}  Kd3 {[%clk 0:00:02]} 47. Kf3 {[%clk 0:00:02]}  Kc4 {[%clk 0:00:02]} 48. Kxe3 {[%clk 0:00:01]}  Kxb5 {[%clk 0:00:02]} 49. Kf3 {[%clk 0:00:02]}  Ka4 {[%clk 0:00:02]} 50. Kg4 {[%clk 0:00:01]}  Kxa3 {[%clk 0:00:02]} 51. Kxh4 {[%clk 0:00:01]}  Kb3 {[%clk 0:00:03]} 52. Kg5 {[%clk 0:00:02]}  Nd5 {[%clk 0:00:04]} 53. Kxg6 {[%clk 0:00:02]}  Kc4 {[%clk 0:00:02]} 54. f5 {[%clk 0:00:02]}  Kd3 {[%clk 0:00:03]} 55. Ng3 {[%clk 0:00:03]}  Kxc3 {[%clk 0:00:03]} 56. f6 {[%clk 0:00:03]}  Nxf6 {[%clk 0:00:03]} 57. Kxf6 {[%clk 0:00:03]} 1-0


[Site "https://www.chess.com"]

[Event "Titled Tuesday Blitz August 3 2021"]
[White "Fayzullaev, Akmal"]
[Black "Begunov, Konstantin"]
[WhiteFideId "14200554"]
[BlackFideId "4118510"]
[WhiteElo "2264"]
[BlackElo "2262"]
[Result "0-1"]
[Round "04"]
[TimeControl "180+1"]
[Date "2021.08.03"]
[WhiteClock "0:00:03"]
[BlackClock "0:00:19"]

1. d4 {[%clk 0:03:00]}  d5 {[%clk 0:01:59]} 2. c4 {[%clk 0:03:00]}  c6 {[%clk 0:02:00]} 3. cxd5 {[%clk 0:03:00]}  cxd5 {[%clk 0:01:59]} 4. Nc3 {[%clk 0:03:01]}  Nf6 {[%clk 0:02:00]} 5. Bf4 {[%clk 0:03:00]}  Nc6 {[%clk 0:02:00]} 6. e3 {[%clk 0:03:01]}  a6 {[%clk 0:02:00]} 7. Bd3 {[%clk 0:02:59]}  Bg4 {[%clk 0:02:00]} 8. Nge2 {[%clk 0:02:59]}  e6 {[%clk 0:02:00]} 9. O-O {[%clk 0:02:59]}  Bd6 {[%clk 0:02:00]} 10. f3 {[%clk 0:02:59]}  Bh5 {[%clk 0:02:01]} 11. Rc1 {[%clk 0:02:59]}  O-O {[%clk 0:02:00]} 12. Na4 {[%clk 0:02:57]}  Bg6 {[%clk 0:02:00]} 13. Nc5 {[%clk 0:02:50]}  Bxc5 {[%clk 0:02:00]} 14. Rxc5 {[%clk 0:02:42]}  Qb6 {[%clk 0:02:01]} 15. b3 {[%clk 0:02:26]}  Rfc8 {[%clk 0:01:53]} 16. Bxg6 {[%clk 0:02:21]}  hxg6 {[%clk 0:01:54]} 17. Qc2 {[%clk 0:02:21]}  Nd7 {[%clk 0:01:38]} 18. Rc3 {[%clk 0:02:18]}  Kh7 {[%clk 0:01:34]} 19. Rc1 {[%clk 0:02:17]}  Nb4 {[%clk 0:01:34]} 20. Rxc8 {[%clk 0:02:10]}  Nxc2 {[%clk 0:01:33]} 21. Rxa8 {[%clk 0:02:10]}  Nb4 {[%clk 0:01:23]} 22. Rc7 {[%clk 0:02:09]}  g5 {[%clk 0:01:08]} 23. Bg3 {[%clk 0:02:02]}  Qb5 {[%clk 0:01:05]} 24. Nc3 {[%clk 0:01:42]}  Qd3 {[%clk 0:01:04]} 25. h3 {[%clk 0:01:42]}  Qxe3+ {[%clk 0:00:56]} 26. Kh2 {[%clk 0:01:43]}  Nf6 {[%clk 0:00:36]} 27. Rf8 {[%clk 0:01:32]}  Nh5 {[%clk 0:00:32]} 28. Bd6 {[%clk 0:01:31]}  Nd3 {[%clk 0:00:29]} 29. Rfxf7 {[%clk 0:01:27]}  Qxd4 {[%clk 0:00:22]} 30. Ne2 {[%clk 0:01:26]}  Qf2 {[%clk 0:00:20]} 31. f4 {[%clk 0:00:03]}  Ne1 {[%clk 0:00:19]} 0-1


[Site "https://www.chess.com"]

[Event "Titled Tuesday Blitz August 3 2021"]
[White "Flores Quillas, Diego Saul Rodri"]
[Black "Ibrahimli, Murad"]
[WhiteFideId "3822508"]
[BlackFideId "13410229"]
[WhiteElo "2524"]
[BlackElo "2799"]
[Result "1-0"]
[Round "04"]
[TimeControl "180+1"]
[Date "2021.08.03"]
[WhiteClock "0:00:04"]
[BlackClock "0:00:04"]

1. e4 {[%clk 0:03:00]}  e5 {[%clk 0:02:59]} 2. Nf3 {[%clk 0:02:54]}  Nc6 {[%clk 0:02:59]} 3. Bb5 {[%clk 0:02:52]}  a6 {[%clk 0:02:58]} 4. Ba4 {[%clk 0:02:52]}  Nf6 {[%clk 0:02:59]} 5. O-O {[%clk 0:02:52]}  b5 {[%clk 0:02:56]} 6. Bb3 {[%clk 0:02:51]}  Bc5 {[%clk 0:02:56]} 7. a4 {[%clk 0:02:49]}  Rb8 {[%clk 0:02:56]} 8. axb5 {[%clk 0:02:49]}  axb5 {[%clk 0:02:56]} 9. Nxe5 {[%clk 0:02:49]}  Nxe5 {[%clk 0:02:56]} 10. d4 {[%clk 0:02:50]}  Bxd4 {[%clk 0:02:57]} 11. Qxd4 {[%clk 0:02:51]}  d6 {[%clk 0:02:57]} 12. f4 {[%clk 0:02:50]}  c5 {[%clk 0:02:56]} 13. Qd1 {[%clk 0:02:12]}  Neg4 {[%clk 0:02:40]} 14. h3 {[%clk 0:02:06]}  c4 {[%clk 0:02:38]} 15. hxg4 {[%clk 0:01:55]}  Bxg4 {[%clk 0:02:32]} 16. Qd4 {[%clk 0:01:46]}  cxb3 {[%clk 0:02:31]} 17. e5 {[%clk 0:01:46]}  dxe5 {[%clk 0:02:30]} 18. Qxe5+ {[%clk 0:01:47]}  Kf8 {[%clk 0:02:28]} 19. cxb3 {[%clk 0:01:41]}  Be6 {[%clk 0:02:12]} 20. f5 {[%clk 0:01:07]}  Bxb3 {[%clk 0:02:09]} 21. Bf4 {[%clk 0:01:04]}  Rc8 {[%clk 0:02:00]} 22. Nd2 {[%clk 0:00:53]}  Bd5 {[%clk 0:02:00]} 23. Rac1 {[%clk 0:00:52]}  Rxc1 {[%clk 0:01:37]} 24. Rxc1 {[%clk 0:00:49]}  h6 {[%clk 0:01:37]} 25. Qd6+ {[%clk 0:00:38]}  Qxd6 {[%clk 0:01:36]} 26. Rc8+ {[%clk 0:00:39]}  Ke7 {[%clk 0:01:31]} 27. Bxd6+ {[%clk 0:00:39]}  Kxd6 {[%clk 0:01:32]} 28. Rxh8 {[%clk 0:00:40]}  Ke5 {[%clk 0:01:30]} 29. Rb8 {[%clk 0:00:40]}  Bc6 {[%clk 0:01:27]} 30. Nb3 {[%clk 0:00:33]}  Nd7 {[%clk 0:01:17]} 31. Re8+ {[%clk 0:00:30]}  Kf6 {[%clk 0:01:07]} 32. Nd4 {[%clk 0:00:28]}  Bd5 {[%clk 0:01:06]} 33. Nxb5 {[%clk 0:00:24]}  Kxf5 {[%clk 0:00:59]} 34. Nd4+ {[%clk 0:00:21]}  Kf6 {[%clk 0:00:45]} 35. b4 {[%clk 0:00:19]}  Nb6 {[%clk 0:00:38]} 36. Kf2 {[%clk 0:00:20]}  Nc4 {[%clk 0:00:38]} 37. b5 {[%clk 0:00:18]}  h5 {[%clk 0:00:38]} 38. Rd8 {[%clk 0:00:16]}  Ke5 {[%clk 0:00:37]} 39. Nc6+ {[%clk 0:00:16]}  Ke6 {[%clk 0:00:37]} 40. Nd4+ {[%clk 0:00:16]}  Ke5 {[%clk 0:00:37]} 41. Nc6+ {[%clk 0:00:17]}  Ke6 {[%clk 0:00:31]} 42. Nb4 {[%clk 0:00:17]}  Bb7 {[%clk 0:00:21]} 43. Nd3 {[%clk 0:00:18]}  Ke7 {[%clk 0:00:19]} 44. Rd4 {[%clk 0:00:17]}  Nd6 {[%clk 0:00:18]} 45. Nc5 {[%clk 0:00:18]}  Bc8 {[%clk 0:00:15]} 46. b6 {[%clk 0:00:18]}  g5 {[%clk 0:00:14]} 47. Ra4 {[%clk 0:00:15]}  Kf6 {[%clk 0:00:12]} 48. Ra7 {[%clk 0:00:15]}  Ke5 {[%clk 0:00:10]} 49. b7 {[%clk 0:00:14]}  Bxb7 {[%clk 0:00:11]} 50. Nxb7 {[%clk 0:00:15]}  Ne4+ {[%clk 0:00:11]} 51. Kg1 {[%clk 0:00:14]}  f5 {[%clk 0:00:11]} 52. Ra5+ {[%clk 0:00:14]}  Kf4 {[%clk 0:00:11]} 53. Nc5 {[%clk 0:00:15]}  Nc3 {[%clk 0:00:10]} 54. Nd3+ {[%clk 0:00:15]}  Ke3 {[%clk 0:00:09]} 55. Nb4 {[%clk 0:00:12]}  Ne2+ {[%clk 0:00:09]} 56. Kh2 {[%clk 0:00:11]}  Ke4 {[%clk 0:00:07]} 57. Nc6 {[%clk 0:00:08]}  Nc3 {[%clk 0:00:05]} 58. Re5+ {[%clk 0:00:08]}  Kf4 {[%clk 0:00:06]} 59. g3+ {[%clk 0:00:08]}  Kg4 {[%clk 0:00:06]} 60. Nd4 {[%clk 0:00:08]}  Ne4 {[%clk 0:00:04]} 61. Nxf5 {[%clk 0:00:05]}  Nf2 {[%clk 0:00:04]} 62. Kg2 {[%clk 0:00:04]}  Nd3 {[%clk 0:00:04]} 63. Ne3# {[%clk 0:00:04]} 1-0


[Site "https://www.chess.com"]

[Event "Titled Tuesday Blitz August 3 2021"]
[White "Garv Gaur"]
[Black "Svane, Rasmus"]
[WhiteFideId "45030839"]
[BlackFideId "4657101"]
[WhiteElo "1950"]
[BlackElo "2669"]
[Result "0-1"]
[Round "04"]
[TimeControl "180+1"]
[Date "2021.08.03"]
[WhiteClock "0:00:11"]
[BlackClock "0:01:18"]

1. d4 {[%clk 0:03:00]}  Nf6 {[%clk 0:02:59]} 2. Nf3 {[%clk 0:03:01]}  d5 {[%clk 0:02:58]} 3. c4 {[%clk 0:03:00]}  e6 {[%clk 0:02:59]} 4. g3 {[%clk 0:03:01]}  Bb4+ {[%clk 0:02:58]} 5. Bd2 {[%clk 0:03:00]}  Be7 {[%clk 0:02:58]} 6. Bg2 {[%clk 0:03:00]}  O-O {[%clk 0:02:59]} 7. O-O {[%clk 0:03:01]}  c6 {[%clk 0:02:59]} 8. Qc2 {[%clk 0:03:01]}  Nbd7 {[%clk 0:03:00]} 9. Rd1 {[%clk 0:03:01]}  a5 {[%clk 0:03:00]} 10. Bf4 {[%clk 0:03:01]}  h6 {[%clk 0:02:59]} 11. Nbd2 {[%clk 0:02:59]}  Nh5 {[%clk 0:02:54]} 12. Ne5 {[%clk 0:02:50]}  Nxe5 {[%clk 0:02:43]} 13. Bxe5 {[%clk 0:02:35]}  f6 {[%clk 0:02:43]} 14. Bf4 {[%clk 0:02:36]}  Nxf4 {[%clk 0:02:21]} 15. gxf4 {[%clk 0:02:37]}  f5 {[%clk 0:02:21]} 16. e3 {[%clk 0:02:35]}  Bd6 {[%clk 0:02:18]} 17. Nf3 {[%clk 0:02:35]}  g5 {[%clk 0:02:17]} 18. Ne5 {[%clk 0:02:23]}  Bxe5 {[%clk 0:01:53]} 19. fxe5 {[%clk 0:02:13]}  Bd7 {[%clk 0:01:46]} 20. cxd5 {[%clk 0:01:50]}  exd5 {[%clk 0:01:45]} 21. Qc5 {[%clk 0:01:50]}  Be6 {[%clk 0:01:43]} 22. Qc2 {[%clk 0:01:46]}  Qe7 {[%clk 0:01:42]} 23. f4 {[%clk 0:01:38]}  Kh8 {[%clk 0:01:39]} 24. Rf1 {[%clk 0:01:37]}  Rg8 {[%clk 0:01:39]} 25. Rf3 {[%clk 0:01:35]}  Rg6 {[%clk 0:01:35]} 26. Rg3 {[%clk 0:01:30]}  Rag8 {[%clk 0:01:34]} 27. Qf2 {[%clk 0:01:29]}  g4 {[%clk 0:01:31]} 28. Bf1 {[%clk 0:01:26]}  h5 {[%clk 0:01:32]} 29. Bd3 {[%clk 0:01:22]}  h4 {[%clk 0:01:31]} 30. Rg2 {[%clk 0:01:22]}  g3 {[%clk 0:01:22]} 31. hxg3 {[%clk 0:01:06]}  hxg3 {[%clk 0:01:22]} 32. Qf3 {[%clk 0:01:05]}  Qh7 {[%clk 0:01:21]} 33. Rd2 {[%clk 0:00:11]}  g2 {[%clk 0:01:18]} 0-1


[Site "https://www.chess.com"]

[Event "Titled Tuesday Blitz August 3 2021"]
[White "Golubev, Mikhail"]
[Black "Vusatiuk, Vladimir"]
[WhiteFideId "14100983"]
[BlackFideId "14118610"]
[WhiteElo "2374"]
[BlackElo "2167"]
[Result "1-0"]
[Round "04"]
[TimeControl "180+1"]
[Date "2021.08.03"]
[WhiteClock "0:01:35"]
[BlackClock "0:01:02"]

1. e4 {[%clk 0:03:00]}  c5 {[%clk 0:03:00]} 2. Nf3 {[%clk 0:03:00]}  d6 {[%clk 0:03:00]} 3. d4 {[%clk 0:03:00]}  cxd4 {[%clk 0:03:01]} 4. Nxd4 {[%clk 0:03:00]}  Nf6 {[%clk 0:03:02]} 5. Nc3 {[%clk 0:03:00]}  Nc6 {[%clk 0:03:03]} 6. Bc4 {[%clk 0:02:59]}  Qb6 {[%clk 0:03:02]} 7. Ndb5 {[%clk 0:02:58]}  a6 {[%clk 0:03:00]} 8. Be3 {[%clk 0:02:57]}  Qd8 {[%clk 0:03:00]} 9. Nd4 {[%clk 0:02:54]}  e6 {[%clk 0:02:57]} 10. Bb3 {[%clk 0:02:48]}  Na5 {[%clk 0:02:50]} 11. f4 {[%clk 0:02:45]}  Qc7 {[%clk 0:02:46]} 12. f5 {[%clk 0:02:45]}  e5 {[%clk 0:02:45]} 13. Nde2 {[%clk 0:02:44]}  Nxb3 {[%clk 0:02:45]} 14. cxb3 {[%clk 0:02:44]}  b5 {[%clk 0:02:43]} 15. Rc1 {[%clk 0:02:44]}  Qb7 {[%clk 0:02:38]} 16. O-O {[%clk 0:02:32]}  Nxe4 {[%clk 0:02:24]} 17. Nd5 {[%clk 0:02:26]}  Be7 {[%clk 0:01:50]} 18. Rc7 {[%clk 0:02:19]}  Bd8 {[%clk 0:01:35]} 19. Rxb7 {[%clk 0:02:16]}  Bxb7 {[%clk 0:01:36]} 20. Qd3 {[%clk 0:02:09]}  Nc5 {[%clk 0:01:29]} 21. Bxc5 {[%clk 0:02:09]}  dxc5 {[%clk 0:01:29]} 22. f6 {[%clk 0:02:03]}  g6 {[%clk 0:01:28]} 23. Ng3 {[%clk 0:01:52]}  h5 {[%clk 0:01:20]} 24. Ne4 {[%clk 0:01:49]}  O-O {[%clk 0:01:20]} 25. Ne7+ {[%clk 0:01:45]}  Kh8 {[%clk 0:01:13]} 26. Qe3 {[%clk 0:01:41]}  Kh7 {[%clk 0:01:06]} 27. Ng5+ {[%clk 0:01:41]}  Kh8 {[%clk 0:01:06]} 28. Ne6 {[%clk 0:01:36]}  Bxe7 {[%clk 0:01:01]} 29. Qh6+ {[%clk 0:01:35]}  Kg8 {[%clk 0:01:02]} 30. Qg7# {[%clk 0:01:35]} 1-0


[Site "https://www.chess.com"]